bitfinex-derivatives/quotes_ETHF0:USTF0_20250309
["timestamp","ask_amount","ask_price","bid_price","bid_amount"]
[1741540306242,0.00728427,2046.4,2046.3,0.97754]
[1741540307141,3.2078,2047.1,2046.4,2.44375]
[1741540307448,3.2078,2047.1,2046.5,2.44363]
[1741540307643,3.2078,2047.1,2046.9,0.97723]
[1741540307843,3.2078,2047.1,2046.5,2.44363]
[1741540308037,3.2078,2047.1,2046.8,0.97729]
[1741540308243,3.2078,2047.4,2046.4,5.87671]
[1741540308447,3.2078,2047.4,2046.5,2.44363]
[1741540308650,4.18482,2047.4,2046.9,0.97722]
[1741540309145,3.2078,2047.4,2047.0,0.97719]
[1741540309353,3.2078,2047.4,2046.9,0.00732654]
[1741540309652,3.2078,2047.4,2047.1,0.97716]
[1741540309842,3.2078,2047.4,2047.0,0.97717]
[1741540310145,0.97721,2047.0,2046.9,0.00732654]
[1741540310443,3.2078,2047.1,2046.9,0.00732654]
[1741540310949,6.5513,2047.8,2046.9,0.98455654]
[1741540310950,4.18486,2047.4,2046.9,0.98455654]
[1741540311146,3.2078,2047.1,2046.9,0.00732654]
[1741540311337,3.2078,2047.4,2046.9,0.00732654]
[1741540311642,9.7591,2047.8,2046.9,0.00732654]
[1741540311838,0.97698,2047.5,2047.1,0.97713]
[1741540312042,0.97702,2047.4,2046.9,0.00732654]
[1741540312240,9.7591,2047.8,2046.9,0.00732654]
[1741540312447,3.2078,2047.4,2046.9,0.00732654]
[1741540312643,3.2078,2047.4,2047.1,0.97713]
[1741540312840,3.2078,2047.4,2046.9,3.43932654]
[1741540313952,0.97721,2047.0,2046.9,0.00732654]
[1741540314140,3.2078,2047.4,2046.9,0.00732654]
[1741540314539,3.2078,2047.8,2047.7,0.97688]
[1741540314751,3.2078,2048.5,2047.7,3.2078]
[1741540315048,11.4337,2048.9,2048.0,3.2078]
[1741540315248,3.2078,2048.5,2047.9,0.00732654]
[1741540315644,4.18453,2048.0,2047.9,0.00732654]
[1741540317446,3.2078,2048.0,2047.9,0.00732654]
[1741540317650,0.97673,2048.0,2047.9,0.00732654]
[1741540318042,3.2078,2048.3,2047.9,0.00732654]
[1741540318353,4.1844,2048.3,2047.9,0.00732654]
[1741540318544,0.97665,2048.2,2047.9,4.41408654]
[1741540318851,3.2078,2048.3,2047.9,4.41408654]
[1741540318852,0.97673,2048.0,2047.9,3.43732654]
[1741540319055,4.18453,2048.0,2047.9,0.00732654]
[1741540319742,3.2078,2048.0,2047.9,0.00732654]
[1741540319947,3.2078,2048.6,2047.9,0.00732654]
[1741540320349,0.97671,2048.1,2047.9,0.00732654]
[1741540320560,3.2078,2048.3,2047.9,0.00732654]
[1741540320951,0.97671,2048.1,2047.9,0.00732654]
[1741540321151,0.97669,2048.1,2047.9,0.00732654]
[1741540321352,4.18453,2048.0,2047.9,0.00732654]
[1741540321957,3.2078,2048.6,2047.9,4.00732654]
[1741540322256,0.97643,2048.7,2048.4,0.97652]
[1741540322452,3.2078,2048.5,2048.3,0.97656]
[1741540322648,2.44039,2049.3,2048.0,3.429]
[1741540322649,3.2078,2048.8,2048.7,0.9764]
[1741540322857,3.2078,2049.1,2048.2,2.44155]
[1741540323047,3.2078,2048.6,2048.1,8.2182]
[1741540323453,4.18426,2048.6,2048.3,0.97656]
[1741540323654,4.18426,2048.6,2048.1,8.2182]
[1741540323956,3.2078,2049.1,2048.2,2.4416]
[1741540324158,0.97638,2048.8,2048.5,0.97645]
[1741540324347,0.97638,2048.8,2048.2,2.4416]
[1741540324551,0.97638,2048.8,2048.1,8.2182]
[1741540324552,3.2078,2048.6,2048.1,8.2182]
[1741540324856,0.97672,2048.1,2047.9,21.92932654]
[1741540325151,0.97673,2048.0,2047.9,21.92932654]
[1741540325354,0.97673,2048.0,2047.9,0.00732654]
[1741540326250,3.2078,2048.2,2047.9,0.00732654]
[1741540326447,6.6358,2048.5,2047.9,0.00732654]
[1741540326653,0.97654,2048.4,2048.2,0.9766]
[1741540327047,3.2078,2048.5,2047.9,3.43432654]
[1741540327253,0.97673,2048.1,2047.9,4.41107654]
[1741540327464,3.2078,2048.2,2047.9,0.98407654]
[1741540327653,3.2078,2048.2,2047.9,0.00732654]
[1741540327654,0.97673,2048.0,2047.9,0.00732654]
[1741540327854,3.2078,2048.2,2047.9,0.00732654]
[1741540328154,0.97673,2048.0,2047.9,0.00732654]
[1741540329057,3.2078,2048.2,2048.1,0.97669]
[1741540329262,3.2078,2048.2,2047.9,0.00732654]
[1741540329562,3.2078,2048.2,2048.1,0.97669]
[1741540329862,3.2078,2048.5,2047.9,0.00732654]
[1741540330063,0.9767,2048.1,2047.9,0.98407654]
[1741540330355,3.2078,2048.5,2047.9,0.00732654]
[1741540330559,0.97662,2048.3,2048.1,0.97668]
[1741540330762,3.2078,2048.5,2047.9,0.00732654]
[1741540331149,4.18432,2048.5,2048.3,0.97658]
[1741540331357,3.2078,2048.5,2047.9,0.00732654]
[1741540331653,0.97649,2048.6,2048.0,5.64964]
[1741540331957,10.81759,2049.0,2047.9,0.00732654]
[1741540331958,3.2078,2048.5,2047.9,0.00732654]
[1741540332156,3.2078,2048.5,2047.9,2.44924654]
[1741540332355,3.2078,2049.1,2048.2,2.4416]
[1741540332563,0.97636,2048.8,2048.6,0.97641]
[1741540332760,0.97634,2048.9,2048.7,0.9764]
[1741540333058,3.2078,2049.1,2049.0,0.97626]
[1741540333259,3.2078,2049.1,2048.6,3.2078]
[1741540333759,3.2078,2049.4,2048.6,3.2078]
[1741540333951,3.2078,2049.4,2049.3,0.97611]
[1741540334154,6.6445,2050.1,2049.3,3.426]
[1741540334359,3.2078,2050.3,2049.8,0.97587]
[1741540334556,3.2078,2050.0,2049.3,3.426]
[1741540334762,3.2078,2050.3,2049.8,0.00732654]
[1741540334957,6.00293,2050.4,2050.0,0.97575]
[1741540335163,0.97572,2050.2,2049.9,0.97581]
[1741540335461,5.0273,2050.4,2049.8,3.43232654]
[1741540335660,3.2078,2050.6,2049.8,3.43232654]
[1741540335862,0.97561,2050.4,2050.1,0.97571]
[1741540336057,0.97557,2050.5,2049.8,6.64012654]
[1741540336260,3.2078,2050.6,2050.1,3.2078]
[1741540336566,3.2078,2050.6,2049.9,6.4815]
[1741540336768,3.2078,2050.6,2049.9,8.92099]
[1741540337072,0.97556,2050.5,2050.2,0.97568]
[1741540337366,3.2078,2050.6,2050.3,0.9756]
[1741540337664,4.18332,2050.6,2050.3,0.97563]
[1741540337864,3.2078,2050.6,2049.9,6.4815]
[1741540338864,0.97562,2050.4,2049.9,6.4815]
[1741540339068,4.18345,2050.3,2049.9,6.4815]
[1741540339268,0.97572,2050.2,2049.9,10.88131]
[1741540339472,3.2078,2050.3,2049.9,9.9055]
[1741540339668,0.97556,2050.5,2050.2,0.97568]
[1741540339870,0.97556,2050.5,2050.2,0.97567]
[1741540340166,3.2078,2050.6,2049.9,9.9055]
[1741540340361,0.97561,2050.4,2050.1,0.97572]
[1741540340562,3.2078,2050.6,2049.9,9.9055]
[1741540340764,3.2078,2050.8,2050.4,0.97559]
[1741540341057,0.97535,2051.0,2050.4,3.423]
[1741540341266,3.2078,2051.1,2050.9,0.97533]
[1741540341570,3.2078,2051.1,2050.4,6.24942091]
[1741540341758,3.2078,2051.4,2050.9,0.97534]
[1741540341965,4.18308,2051.1,2050.8,0.97538]
[1741540342164,4.18309,2051.1,2050.9,0.00732654]
[1741540342366,0.9753,2051.0,2050.9,0.00732654]
[1741540342860,3.2078,2051.5,2050.9,3.42932654]
[1741540343065,3.2078,2052.4,2051.4,3.2078]
[1741540343271,0.97452,2052.7,2052.0,3.2078]
[1741540343471,3.2078,2053.0,2052.3,3.2078]
[1741540343667,0.97461,2052.5,2052.1,4.39575]
[1741540343863,2.43599,2053.0,2051.3,3.2078]
[1741540343864,0.97494,2051.8,2051.3,3.2078]
[1741540344070,3.2078,2052.1,2051.3,3.2078]
[1741540344366,18.3093,2052.4,2051.3,3.2078]
[1741540344671,0.97486,2052.0,2051.6,0.975]
[1741540344872,0.9749,2051.9,2051.5,0.97505]
[1741540345060,0.9749,2051.9,2051.6,3.21510869]
[1741540345463,0.0072492,2052.0,2051.6,0.00730869]
[1741540345673,0.0072492,2052.0,2051.6,3.21510869]
[1741540345870,0.9821192,2052.0,2051.6,4.19010869]
[1741540346065,0.9821192,2052.0,2051.7,0.97495]
[1741540346271,0.9821192,2052.0,2051.6,3.21510869]
[1741540346272,0.9821192,2052.0,2051.6,4.19009869]
[1741540346469,0.9821192,2052.0,2051.6,3.21510869]
[1741540346771,0.0072492,2052.0,2051.6,3.21510869]
[1741540347470,0.0072492,2052.0,2051.7,0.97494]
[1741540347767,0.0072492,2052.0,2051.9,0.97488]
[1741540347967,6.5328,2052.9,2052.0,2.43698]
[1741540348175,3.2078,2053.0,2052.0,6.6278]
[1741540348363,3.2078,2052.6,2052.0,6.6278]
[1741540348570,3.2078,2052.9,2052.0,6.6278]
[1741540348970,3.2078,2052.9,2052.3,3.2078]
[1741540349278,0.97426,2053.2,2052.9,0.97439]
[1741540349465,9.7406,2053.4,2052.6,3.2078]
[1741540349671,9.7406,2053.4,2052.7,0.97446]
[1741540349672,0.97437,2053.0,2052.7,0.97446]
[1741540349971,0.9744,2052.9,2052.8,0.00730869]
[1741540351773,0.9744,2052.9,2052.8,8.69e-06]
[1741540352068,4.0,2052.9,2051.5,3.2078]
[1741540352268,3.2078,2052.1,2051.5,3.56948885]
[1741540352675,3.2078,2052.1,2051.5,3.2078]
[1741540352871,0.97487,2052.0,2051.7,0.97496]
[1741540353276,3.21510869,2052.1,2051.6,0.00730869]
[1741540353580,0.00730869,2052.1,2052.0,0.97483]
[1741540353877,3.2078,2052.9,2051.8,6.6248]
[1741540354083,3.2078,2052.9,2051.9,5.3196]
[1741540354272,2.43631,2052.7,2051.9,5.3196]
[1741540354581,5.64414,2052.7,2052.0,0.9748]
[1741540354878,3.2078,2052.4,2051.8,3.2078]
[1741540355180,0.97461,2052.5,2051.8,3.2078]
[1741540355477,4.9815,2053.0,2052.1,3.2078]
[1741540355678,3.2078,2053.1,2052.4,3.2078]
[1741540355877,0.9744,2052.9,2052.7,0.97448]
[1741540356082,0.97438,2053.0,2052.7,0.97448]
[1741540356276,0.97432,2053.1,2052.7,3.2078]
[1741540356473,0.97436,2053.0,2052.7,3.2078]
[1741540356676,3.2078,2053.3,2052.7,6.6238]
[1741540356978,8.1893,2053.6,2052.7,6.6238]
[1741540357375,0.97425,2053.3,2053.0,0.97434]
[1741540357586,8.1893,2053.6,2052.7,7.01223332]
[1741540357777,0.9743,2053.2,2052.9,0.97438]
[1741540358081,0.97428,2053.2,2052.9,0.97437]
[1741540358283,10.62459,2053.6,2052.7,6.6238]
[1741540358479,0.97426,2053.3,2053.0,0.97435]
[1741540358882,8.1893,2053.6,2052.8,2.43613]
[1741540359180,2.43494,2053.8,2053.0,3.2078]
[1741540359381,3.2078,2053.5,2053.0,3.2078]
[1741540359577,3.2078,2053.5,2052.7,13.650399]
[1741540359779,0.97445,2052.8,2052.7,6.6238]
[1741540360079,0.97445,2052.8,2052.3,5.0969]
[1741540360080,0.97462,2052.5,2052.3,0.97467]
[1741540360287,5.64398,2052.8,2051.8,18.6514]
[1741540360590,3.2078,2052.8,2052.1,3.2078]
[1741540360883,3.2078,2053.5,2052.5,2.43649]
[1741540361186,0.97452,2052.7,2052.5,0.97457]
[1741540361380,0.97456,2052.6,2052.4,4.38862]
[1741540361581,0.97456,2052.6,2052.4,4.39592869]
[1741540361882,4.87075,2053.5,2052.4,4.39592869]
[1741540361883,3.2078,2053.8,2053.7,0.97402]
[1741540362078,3.2078,2054.1,2054.0,0.97387]
[1741540362283,5.2329,2054.3,2054.2,0.97379]
[1741540362479,5.2329,2054.3,2053.9,2.43483]
[1741540362480,3.2078,2054.5,2054.3,0.97374]
[1741540362783,6.4973,2054.8,2054.1,6.6218]
[1741540363183,9.7051,2054.8,2054.1,3.42130869]
[1741540363385,4.18159,2054.2,2054.1,0.00730869]
[1741540363584,3.2078,2054.6,2054.1,0.00730869]
[1741540363785,8.3065,2054.7,2054.1,0.00730869]
[1741540364085,5.0987,2054.7,2054.1,0.00730869]
[1741540364289,0.97379,2054.2,2054.1,0.00730869]
[1741540364788,2.43464,2054.1,2053.1,3.2078]
[1741540364992,6.62810869,2054.4,2053.4,3.2078]
[1741540365291,6.62810869,2054.4,2053.7,3.2078]
[1741540365587,0.97381,2054.2,2053.8,0.97393]
[1741540365887,0.97382,2054.2,2053.9,0.97391]
[1741540366192,3.42030869,2054.4,2053.8,0.00730869]
[1741540366193,0.97392,2054.0,2053.8,0.00730869]
[1741540366586,0.97393,2053.9,2053.8,0.00730869]
[1741540367091,0.00730869,2054.4,2053.8,0.00730869]
[1741540367291,0.00730869,2054.4,2053.8,2.44224869]
[1741540367488,0.00730869,2054.4,2054.2,0.97376]
[1741540367694,0.00730869,2054.4,2054.0,3.2078]
[1741540367885,0.97383,2054.1,2054.0,3.2078]
[1741540368087,3.2078,2054.2,2053.8,0.00730869]
[1741540368588,0.97393,2053.9,2053.8,0.00730869]
[1741540368892,3.2078,2054.2,2053.8,0.00730869]
[1741540369190,0.97393,2053.9,2053.8,0.00730869]
[1741540369387,3.2078,2054.2,2053.8,0.00730869]
[1741540369693,0.97393,2053.9,2053.8,0.00730869]
[1741540370194,4.18173,2053.9,2053.8,0.00730869]
[1741540370395,0.97393,2053.9,2053.8,0.00730869]
[1741540370695,3.2078,2054.1,2053.8,0.00730869]
[1741540370880,0.97393,2053.9,2053.8,0.00730869]
[1741540371285,0.00730869,2054.4,2053.8,0.00730869]
[1741540371488,3.21510869,2054.4,2053.8,0.00730869]
[1741540371688,0.00730869,2054.4,2054.0,3.2078]
[1741540372087,0.00730869,2054.4,2054.2,0.97376]
[1741540372287,3.21510869,2054.4,2054.0,3.2078]
[1741540372487,0.97393,2053.9,2053.8,5.64142293]
[1741540372695,0.97393,2053.9,2053.8,0.00730869]
[1741540373289,0.00730869,2054.4,2053.8,0.00730869]
[1741540373495,0.97376,2054.3,2054.1,0.97383]
[1741540374083,0.00730869,2054.4,2053.8,0.00730869]
[1741540374288,0.00730869,2054.4,2054.0,3.2078]
[1741540374793,0.97378,2054.3,2054.0,0.97384]
[1741540374993,0.00730869,2054.4,2054.0,3.2078]
[1741540375194,0.00730869,2054.4,2054.3,0.97374]
[1741540375398,0.97351,2054.8,2054.3,4.18154]
[1741540375693,3.2078,2055.1,2054.4,2.43423]
[1741540375891,4.18119,2055.1,2054.8,0.97349]
[1741540376094,3.2078,2055.1,2054.6,3.2078]
[1741540376296,5.165,2055.7,2055.0,3.2078]
[1741540376487,3.2078,2055.5,2054.9,3.41]
[1741540376688,2.43265,2055.8,2055.0,2.43352]
[1741540376689,3.2078,2055.8,2055.0,2.43352]
[1741540376993,14.4656,2056.2,2055.9,0.97295]
[1741540377193,11.2578,2056.2,2055.6,3.2078]
[1741540377594,4.1807,2056.1,2055.7,0.97307]
[1741540377796,3.2078,2056.1,2055.6,3.2078]
[1741540377997,3.2078,2056.1,2055.7,0.97306]
[1741540378196,3.2078,2056.1,2055.6,3.2078]
[1741540378392,3.2078,2056.1,2055.4,3.41]
[1741540378695,3.2078,2055.5,2055.0,21.86030869]
[1741540378888,3.2078,2055.9,2055.0,0.00730869]
[1741540379091,3.409,2056.0,2055.0,0.00730869]
[1741540379092,0.97336,2055.1,2055.0,0.00730869]
[1741540379893,4.9903,2055.8,2055.0,0.00730869]
[1741540380092,0.9732,2055.5,2055.2,0.97329]
[1741540380397,0.97327,2055.3,2055.0,0.00730869]
[1741540380699,0.97324,2055.4,2055.1,0.97334]
[1741540380896,3.2078,2055.5,2055.0,0.00730869]
[1741540381099,4.9903,2055.8,2055.0,0.00730869]
[1741540381300,4.9903,2055.8,2055.1,3.2078]
[1741540381801,0.97316,2055.6,2055.3,0.97325]
[1741540382094,3.2078,2055.6,2055.0,0.00730869]
[1741540382400,3.2078,2055.7,2055.0,0.00730869]
[1741540382605,4.9903,2055.8,2055.0,0.00730869]
[1741540382606,3.2078,2055.4,2055.0,0.00730869]
[1741540382895,0.97336,2055.1,2055.0,0.00730869]
[1741540383095,3.2078,2055.4,2055.0,0.00730869]
[1741540383297,8.1981,2055.8,2055.0,0.00730869]
[1741540383598,0.97311,2055.7,2055.4,0.97319]
[1741540383798,0.97314,2055.6,2055.3,0.97323]
[1741540383993,0.9731,2055.7,2055.0,0.00730869]
[1741540384188,0.97314,2055.6,2055.3,0.97324]
[1741540384394,8.1981,2055.8,2055.0,0.00730869]
[1741540384599,9.17113,2055.8,2055.4,0.97319]
[1741540384902,8.1981,2055.8,2055.1,6.6148]
[1741540385194,0.97316,2055.6,2055.1,7.58813]
[1741540385395,8.1981,2055.8,2055.1,3.2078]
[1741540385592,3.2078,2056.0,2055.9,0.97298]
[1741540385799,7.02177,2056.4,2056.3,0.97279]
[1741540385800,6.049,2056.4,2056.3,0.97279]
[1741540386495,8.4224,2056.8,2056.1,0.00730869]
[1741540386496,0.97268,2056.6,2056.1,0.00730869]
[1741540386703,3.2078,2056.5,2056.1,0.00730869]
[1741540387500,0.97284,2056.2,2056.1,0.00730869]
[1741540388694,3.2078,2056.5,2056.1,0.00730869]
[1741540388893,0.97284,2056.2,2056.1,0.00730869]
[1741540389394,8.18064,2056.2,2056.1,0.00730869]
[1741540389589,0.9729,2056.1,2055.6,3.407]
[1741540389901,3.2078,2056.2,2055.6,3.407]
[1741540390201,0.00730869,2056.4,2055.5,3.2078]
[1741540390402,0.97298,2055.9,2055.8,3.2078]
[1741540390701,0.97294,2056.0,2055.8,4.18081]
[1741540390993,0.97291,2056.1,2055.8,4.18081]
[1741540391199,0.97295,2056.0,2055.8,3.2078]
[1741540391503,3.2078,2056.3,2055.8,3.2078]
[1741540391700,0.97298,2055.9,2055.8,3.2078]
[1741540391999,3.2078,2056.3,2055.8,3.2078]
[1741540392601,3.2078,2056.3,2055.8,4.18081]
[1741540392799,0.00730869,2056.4,2055.9,2.43246]
[1741540392994,3.2078,2057.5,2056.3,3.2078]
[1741540393194,3.2078,2057.5,2056.1,4.86436]
[1741540393195,5.3549,2057.8,2057.0,2.43116]
[1741540393395,5.3549,2057.8,2056.9,3.2078]
[1741540393396,3.2078,2057.3,2056.9,3.2078]
[1741540393595,0.97247,2057.0,2056.7,0.97258]
[1741540393801,3.2078,2057.3,2056.4,3.2078]
[1741540394003,3.2078,2056.8,2056.0,6.5566]
[1741540394204,0.97292,2056.1,2055.9,25.0448]
[1741540394399,0.97279,2056.3,2056.2,0.00729076]
[1741540394596,4.97279,2056.3,2056.2,7.6e-07]
[1741540394801,0.97279,2056.3,2056.2,7.6e-07]
[1741540395002,4.97279,2056.3,2056.2,7.6e-07]
[1741540395199,2.43226,2056.1,2055.0,3.2078]
[1741540395394,3.2078,2056.2,2055.0,3.2078]
[1741540395594,3.2078,2055.9,2055.0,6.03493187]
[1741540395799,0.97319,2055.5,2055.0,3.96025256]
[1741540395999,6.6118,2055.9,2055.3,3.2078]
[1741540396201,0.97323,2055.4,2055.1,0.97332]
[1741540396407,5.20583096,2055.8,2055.4,0.00729076]
[1741540396609,0.97319,2055.5,2055.4,0.00729076]
[1741540397609,0.97316,2055.6,2055.4,0.00729076]
[1741540397803,0.97317,2055.5,2055.4,0.00729076]
[1741540398398,4.97317,2055.5,2055.4,0.00729076]
[1741540398607,4.97317,2055.5,2054.3,4.53841956]
[1741540398608,0.97362,2054.6,2054.3,4.53841956]
[1741540398803,2.43327,2055.3,2054.3,4.53841956]
[1741540398804,3.2078,2055.0,2054.3,3.2078]
[1741540399002,3.2078,2054.4,2054.0,3.2078]
[1741540399202,3.2078,2054.7,2053.9,0.39397989]
[1741540399412,2.434,2054.6,2053.8,21.835]
[1741540399606,2.43412,2054.5,2053.7,3.2078]
[1741540399807,0.97385,2054.1,2054.0,0.00729076]
[1741540400203,0.00729076,2054.4,2054.0,0.00729076]
[1741540400708,0.97383,2054.1,2054.0,0.00729076]
[1741540401106,0.97406,2053.7,2053.4,9.17876]
[1741540401300,2.43471,2054.0,2053.4,3.2078]
[1741540401510,2.43471,2054.0,2053.2,3.403]
[1741540401511,0.9741,2053.6,2053.3,0.9742]
[1741540401705,0.97413,2053.5,2053.2,1.35336586]
[1741540401906,3.2078,2053.8,2053.1,3.2078]
[1741540402208,0.97423,2053.3,2053.0,22.81133]
[1741540402406,0.97419,2053.4,2053.2,0.00729076]
[1741540402621,0.00729076,2053.4,2053.3,0.9742]
[1741540402812,0.00729076,2053.4,2053.2,0.00729076]
[1741540403114,0.00729076,2053.4,2053.3,0.97421]
[1741540403412,0.00729076,2053.4,2053.2,0.00729076]
[1741540403814,0.98147076,2053.4,2053.2,0.00729076]
[1741540404015,0.00729076,2053.4,2053.3,0.97421]
[1741540404607,0.00729076,2053.4,2053.2,0.00729076]
[1741540404813,0.00729076,2053.4,2053.3,0.97421]
[1741540405012,0.00729076,2053.4,2053.2,0.00729076]
[1741540405218,0.00729076,2053.4,2053.2,0.98152076]
[1741540405714,0.00729076,2053.4,2053.2,0.00729076]
[1741540406020,0.97421,2053.3,2053.2,0.00729076]
[1741540406708,4.0,2053.3,2052.8,3.2078]
[1741540406909,3.2078,2053.1,2052.5,3.2078]
[1741540407112,3.2078,2053.1,2052.5,0.97457]
[1741540407315,3.2078,2053.1,2052.6,3.2078]
[1741540407316,0.97439,2053.0,2052.6,3.2078]
[1741540407513,3.2078,2053.1,2052.6,3.2078]
[1741540407827,0.97444,2052.9,2052.6,3.2078]
[1741540408011,0.9745,2052.7,2052.6,3.21509076]
[1741540408213,0.9745,2052.7,2052.6,0.00729076]
[1741540408513,7.2078,2052.7,2051.9,6.2269]
[1741540408717,2.43637,2052.6,2051.8,3.59251677]
[1741540408919,3.404,2052.9,2051.8,3.59251677]
[1741540408920,4.9124,2052.8,2051.8,3.59251677]
[1741540409119,0.9748,2052.1,2051.8,4.56741677]
[1741540409309,3.2078,2052.7,2051.8,3.2078]
[1741540409513,0.97473,2052.3,2052.1,3.2078]
[1741540409717,0.00730869,2052.5,2052.1,3.2078]
[1741540410315,3.2078,2053.4,2052.5,2.43649]
[1741540410514,3.2078,2053.4,2052.7,3.2078]
[1741540411015,0.97445,2052.8,2052.7,3.2078]
[1741540411222,5.83937,2053.5,2052.5,0.97459]
[1741540411223,3.2078,2053.0,2052.5,0.97459]
[1741540411415,3.21510869,2053.0,2052.4,8.5042]
[1741540411715,0.97455,2052.6,2052.4,8.5042]
[1741540411917,0.00730869,2053.0,2052.4,8.5042]
[1741540412112,0.9745,2052.7,2052.5,0.97457]
[1741540412310,0.9745,2052.7,2052.4,9.47882]
[1741540412516,0.00730869,2053.0,2052.4,9.47882]
[1741540413025,0.00730869,2053.0,2052.4,8.5042]
[1741540413210,0.97449,2052.8,2052.5,0.97456]
[1741540413411,0.98168869,2053.0,2052.4,8.5042]
[1741540413619,0.00730869,2053.0,2052.4,8.5042]
[1741540413821,0.97451,2052.7,2052.4,9.4788]
[1741540414018,3.21510869,2053.0,2052.4,8.5042]
[1741540414329,0.9744,2052.9,2052.7,0.97448]
[1741540414623,3.21510869,2053.0,2052.4,8.5042]
[1741540414822,0.97451,2052.7,2052.5,0.97457]
[1741540415020,0.97456,2052.6,2052.4,9.47882]
[1741540415323,3.21510869,2053.0,2052.4,8.5042]
[1741540415515,0.97454,2052.7,2052.4,9.4788]
[1741540415717,0.97456,2052.6,2052.4,9.4788]
[1741540416122,0.97459,2052.5,2052.4,8.5042]
[1741540416421,0.97459,2052.5,2052.4,9.47884]
[1741540416624,0.97469,2052.3,2052.2,6.1466]
[1741540416814,3.2078,2052.7,2052.0,0.00730869]
[1741540416815,0.97478,2052.1,2052.0,0.00730869]
[1741540417325,0.97471,2052.3,2052.0,0.00730869]
[1741540417526,3.404,2052.7,2052.1,3.2078]
[1741540417825,0.97473,2052.2,2052.1,3.2078]
[1741540418022,0.97478,2052.1,2052.0,0.00730869]
[1741540418217,4.18258,2052.1,2052.0,0.00730869]
[1741540418418,8.18258,2052.1,2052.0,0.00730869]
[1741540418819,4.18258,2052.1,2052.0,0.00730869]
[1741540419025,8.18258,2052.1,2052.0,0.00730869]
[1741540419219,0.97478,2052.1,2052.0,0.00730869]
[1741540419620,6.1928,2052.4,2052.0,0.00730869]
[1741540419927,0.97476,2052.2,2052.0,0.00730869]
[1741540420317,3.2078,2052.4,2052.0,0.00730869]
[1741540420521,3.2078,2052.7,2052.0,3.21510869]
[1741540420729,3.2078,2052.7,2052.2,0.97472]
[1741540420933,0.97464,2052.4,2052.2,0.97472]
[1741540421226,2.985,2052.8,2052.0,3.21510869]
[1741540421429,17.6,2052.9,2052.0,3.21510869]
[1741540421626,0.97478,2052.1,2052.0,0.00730869]
[1741540422033,0.97475,2052.2,2052.0,0.00730869]
[1741540422228,0.97478,2052.1,2052.0,0.00730869]
[1741540422429,3.2078,2052.5,2052.0,0.00730869]
[1741540422637,0.97478,2052.1,2052.0,0.00730869]
[1741540423227,2.43645,2052.6,2052.0,0.00730869]
[1741540423428,0.97478,2052.1,2052.0,0.00730869]
[1741540424233,0.97473,2052.3,2052.0,0.00730869]
[1741540424431,0.97467,2052.4,2052.1,0.97478]
[1741540424731,0.97466,2052.4,2052.2,0.97472]
[1741540425027,0.97461,2052.5,2052.0,3.21510869]
[1741540425240,0.97447,2052.8,2052.6,0.97452]
[1741540425438,0.00730869,2053.0,2052.3,3.2078]
[1741540425439,0.97453,2052.7,2052.3,3.2078]
[1741540425632,0.00730869,2053.0,2052.3,3.2078]
[1741540425830,0.97461,2052.5,2052.3,4.18246]
[1741540426036,0.00730869,2053.0,2052.3,3.2078]
[1741540426241,0.97448,2052.8,2052.5,0.97456]
[1741540426533,0.97441,2052.9,2052.3,3.2078]
[1741540426739,0.97443,2052.9,2052.7,0.97446]
[1741540426941,0.97451,2052.7,2052.5,0.97457]
[1741540427130,2.44326869,2053.0,2052.3,3.2078]
[1741540427335,2.44326869,2053.0,2052.0,0.00730869]
[1741540427336,0.97467,2052.4,2052.0,3.21510869]
[1741540427531,0.97467,2052.4,2051.6,3.2078]
[1741540427532,0.97497,2051.7,2051.6,3.2078]
[1741540427739,3.2078,2052.1,2051.2,9.7541]
[1741540427931,0.975,2051.7,2051.5,0.97504]
[1741540428134,3.2078,2052.1,2051.2,9.7541]
[1741540428332,3.2078,2052.1,2051.5,3.2078]
[1741540428546,0.98220869,2051.9,2051.6,0.97498]
[1741540428846,0.97493,2051.8,2051.6,0.97498]
[1741540429141,0.97507,2051.5,2051.4,0.00730869]
[1741540429536,0.97504,2051.6,2051.4,0.98241869]
[1741540429736,0.97507,2051.5,2051.4,0.00730869]
[1741540429942,0.97503,2051.6,2051.4,0.98240869]
[1741540430241,0.97499,2051.7,2051.4,0.00730869]
[1741540430447,4.38519869,2051.9,2051.7,0.97495]
[1741540430634,4.38519869,2051.9,2051.5,0.97505]
[1741540430635,0.975,2051.7,2051.5,0.97505]
[1741540431035,0.00730869,2051.9,2051.4,0.00730869]
[1741540431340,3.2078,2052.7,2051.6,3.2078]
[1741540431532,5.64375,2053.0,2052.3,3.2078]
[1741540431737,3.2078,2053.0,2052.5,0.97458]
[1741540432138,3.2078,2053.0,2052.3,3.2078]
[1741540432343,0.97456,2052.6,2052.4,0.97462]
[1741540432543,0.00730869,2052.9,2052.4,0.00730869]
[1741540432745,0.97456,2052.6,2052.4,0.98192869]
[1741540432946,0.97459,2052.5,2052.4,0.00730869]
[1741540435346,4.97459,2052.5,2052.4,8.69e-06]
[1741540435844,8.37659,2052.5,2052.4,8.69e-06]
[1741540437137,2.43661,2052.4,2051.4,31.4359]
[1741540437340,2.43661,2052.4,2051.7,3.2078]
[1741540437341,0.97492,2051.8,2051.7,3.2078]
[1741540437752,3.2078,2052.4,2051.9,0.97486]
[1741540437944,3.2078,2052.4,2051.7,3.2078]
[1741540438245,0.97461,2052.5,2052.1,3.2078]
[1741540438446,8.1249,2052.7,2052.1,3.2078]
[1741540438650,0.97462,2052.5,2052.3,0.97467]
[1741540438853,2.44340869,2052.9,2052.1,3.2078]
[1741540439049,0.00730869,2052.9,2052.4,3.2078]
[1741540439243,0.00730869,2052.9,2052.4,4.18243]
[1741540439546,0.97455,2052.6,2052.4,4.18242]
[1741540439746,0.97455,2052.6,2052.4,4.18241]
[1741540440452,0.97457,2052.6,2052.4,4.18241]